lending/lending_fUSD_20250131
["ID","MTS","AMOUNT","RATE_DAILY","PERIOD"]
[351138876,1738348294839,-666.3,0.00020135,2]
[351138877,1738348294848,-536.21,0.00020135,2]
[351138878,1738348294858,-872.1,0.00020135,2]
[351138879,1738348294872,-1030.96,0.00020135,2]
[351138880,1738348294882,-544.41356623,0.00020135,2]
[351138881,1738348294891,-4715.16,0.00020135,2]
[351138882,1738348294900,-993.3,0.00020135,2]
[351138883,1738348294909,-2605.9,0.00020135,2]
[351138884,1738348294919,-4721.91,0.00020135,2]
[351138885,1738348294929,-2283.47,0.00020135,2]
[351138886,1738348294939,-939.50249988,0.00020135,2]
[351138887,1738348294952,-2389.08,0.00020135,2]
[351138888,1738348294962,-965.2621778,0.00020135,2]
[351138889,1738348294971,-557.93,0.00020135,2]
[351138890,1738348294981,-2395.63,0.00020135,2]
[351138891,1738348294991,-1060.99416569,0.00020135,2]
[351138892,1738348295001,-1276.49,0.00020135,2]
[351138893,1738348295010,-973.80331593,0.00020135,2]
[351138894,1738348295020,-870.13,0.00020135,2]
[351138895,1738348295031,-1177.58,0.00020135,2]
[351138896,1738348295040,-510.79393588,0.00020136,2]
[351138897,1738348295051,-150.0,0.00020143,4]
[351138898,1738348295062,-500.0,0.00020145,2]
[351138899,1738348295072,-1000.0,0.00020159,2]
[351138900,1738348295083,-150.0,0.00020176,4]
[351138901,1738348295093,-200.0,0.00020192,2]
[351138902,1738348295102,-300.0,0.00020199,2]
[351138903,1738348295112,-174734.147107,0.000202,2]
[351138904,1738348295122,-172198.87558657,0.000202,2]
[351138905,1738348295132,-248279.91111122,0.000202,2]
[351138906,1738348295142,-150.0,0.000202,8]
[351138907,1738348295152,-4828.93,0.000202,2]
[351138908,1738348295162,-1212196.99148514,0.000202,2]
[351138909,1738348295172,-151.0,0.000202,2]
[351138910,1738348295182,-151.0,0.000202,2]
[351138911,1738348295192,-151.0,0.000202,2]
[351138912,1738348295204,-151.0,0.000202,2]
[351138913,1738348295214,-150.0,0.00020202,4]
[351138914,1738348295224,-1155.31,0.0002022,2]
[351138915,1738348295234,-150.0,0.00020232,4]
[351138916,1738348295244,-150.0,0.00020232,4]
[351138917,1738348295254,-500.0,0.00020245,2]
[351138918,1738348295263,-500.0,0.00020269,7]
[351138919,1738348295272,-500.0,0.00020269,7]
[351138920,1738348295282,-500.0,0.00020269,7]
[351138921,1738348295291,-786.06,0.0002027,2]
[351138922,1738348295301,-500.0,0.0002027,2]
[351138923,1738348295311,-500.0,0.0002027,2]
[351138924,1738348295320,-500.0,0.0002027,2]
[351138925,1738348295330,-500.0,0.0002027,2]
[351138926,1738348295339,-500.0,0.0002027,2]
[351138927,1738348295350,-500.0,0.0002027,2]
[351138928,1738348295359,-500.0,0.0002027,2]
[351138929,1738348295369,-500.0,0.0002027,2]
[351138930,1738348295379,-500.0,0.0002027,2]
[351138931,1738348295388,-500.0,0.0002027,2]
[351138932,1738348295398,-500.0,0.0002027,2]
[351138933,1738348295408,-500.0,0.0002027,2]
[351138934,1738348295418,-500.0,0.0002027,2]
[351138935,1738348295428,-500.0,0.0002027,2]
[351138936,1738348295438,-500.0,0.0002027,2]
[351138937,1738348295449,-500.0,0.0002027,2]
[351138938,1738348295459,-500.0,0.0002027,2]
[351138939,1738348295469,-500.0,0.0002027,2]
[351138940,1738348295479,-500.0,0.0002027,2]
[351138941,1738348295488,-500.0,0.0002027,2]
[351138942,1738348295498,-500.0,0.0002027,2]
[351138943,1738348295509,-500.0,0.0002027,2]
[351138944,1738348295520,-500.0,0.0002027,2]
[351138945,1738348295530,-500.0,0.0002027,2]
[351138946,1738348295539,-500.0,0.0002027,2]
[351138947,1738348295552,-500.0,0.0002027,2]
[351138948,1738348295562,-500.0,0.0002027,2]
[351138949,1738348295572,-500.0,0.0002027,2]
[351138950,1738348295581,-500.0,0.0002027,2]
[351138951,1738348295592,-500.0,0.0002027,2]
[351138952,1738348295602,-500.0,0.0002027,2]
[351138953,1738348295612,-500.0,0.0002027,2]
[351138954,1738348295622,-500.0,0.0002027,2]
[351138955,1738348295632,-500.0,0.0002027,2]
[351138956,1738348295644,-500.0,0.0002027,2]
[351138957,1738348295654,-500.0,0.0002027,2]
[351138958,1738348295664,-500.0,0.0002027,2]
[351138959,1738348295674,-500.0,0.0002027,2]
[351138960,1738348295684,-500.0,0.0002027,2]
[351138961,1738348295694,-500.0,0.0002027,2]
[351138962,1738348295706,-500.0,0.0002027,2]
[351138963,1738348295716,-500.0,0.0002027,2]
[351138964,1738348295725,-500.0,0.0002027,2]
[351138965,1738348295735,-500.0,0.0002027,2]
[351138966,1738348295746,-500.0,0.0002027,2]
[351138967,1738348295756,-500.0,0.0002027,2]
[351138968,1738348295766,-500.0,0.0002027,2]
[351138969,1738348295775,-500.0,0.0002027,2]
[351138970,1738348295785,-500.0,0.0002027,2]
[351138971,1738348295795,-500.0,0.0002027,2]
[351138972,1738348295805,-500.0,0.0002027,2]
[351138973,1738348295815,-500.0,0.0002027,2]
[351138974,1738348295825,-500.0,0.0002027,2]
[351138975,1738348295834,-500.0,0.0002027,2]
[351138976,1738348295848,-500.0,0.0002027,2]
[351138977,1738348295862,-500.0,0.0002027,2]
[351138978,1738348295872,-500.0,0.0002027,2]
[351138979,1738348295881,-500.0,0.0002027,2]
[351138980,1738348295891,-500.0,0.0002027,2]
[351138981,1738348295903,-500.0,0.0002027,2]
[351138982,1738348295913,-500.0,0.0002027,2]
[351138983,1738348295923,-500.0,0.0002027,2]
[351138984,1738348295934,-500.0,0.0002027,2]
[351138985,1738348295943,-500.0,0.0002027,2]
[351138986,1738348295957,-926.0,0.0002027,2]
[351138987,1738348295967,-744.03,0.0002027,2]
[351138988,1738348295978,-1041.45,0.0002027,2]
[351138989,1738348295987,-679.36,0.0002027,2]
[351138990,1738348295997,-639.49,0.0002027,2]
[351138991,1738348296006,-983.34,0.0002027,2]
[351138992,1738348296017,-853.27,0.0002027,2]
[351138993,1738348296027,-500.0,0.0002027,2]
[351138994,1738348296038,-2290.49,0.0002027,2]
[351138995,1738348296048,-500.0,0.0002027,2]
[351138996,1738348296059,-500.0,0.0002027,2]
[351138997,1738348296068,-500.0,0.0002027,2]
[351138998,1738348296078,-500.0,0.0002027,2]
[351138999,1738348296087,-500.0,0.0002027,2]
[351139000,1738348296097,-500.0,0.0002027,2]
[351139001,1738348296107,-500.0,0.0002027,2]
[351139002,1738348296117,-500.0,0.0002027,2]
[351139003,1738348296126,-500.0,0.0002027,2]
[351139004,1738348296136,-500.0,0.0002027,2]
[351139005,1738348296145,-500.0,0.0002027,2]
[351139006,1738348296155,-500.0,0.0002027,2]
[351139007,1738348296164,-500.0,0.0002027,2]
[351139008,1738348296174,-500.0,0.0002027,2]
[351139009,1738348296184,-500.0,0.0002027,2]
[351139010,1738348296194,-500.0,0.0002027,2]
[351139011,1738348296211,-500.0,0.0002027,2]
[351139012,1738348296222,-500.0,0.0002027,2]
[351139013,1738348296232,-500.0,0.0002027,2]
[351139014,1738348296243,-500.0,0.0002027,2]
[351139015,1738348296254,-500.0,0.0002027,2]
[351139016,1738348296264,-15748.87,0.0002027,2]
[351139017,1738348296275,-500.0,0.0002027,2]
[351139018,1738348296286,-500.0,0.0002027,2]
[351139019,1738348296297,-500.0,0.0002027,2]
[351139020,1738348296307,-500.0,0.0002027,2]
[351139021,1738348296317,-500.0,0.0002027,2]
[351139022,1738348296326,-500.0,0.0002027,2]
[351139023,1738348296336,-500.0,0.0002027,2]
[351139024,1738348296346,-500.0,0.0002027,2]
[351139025,1738348296356,-500.0,0.0002027,2]
[351139026,1738348296366,-500.0,0.0002027,2]
[351139027,1738348296376,-500.0,0.0002027,2]
[351139028,1738348296386,-500.0,0.0002027,2]
[351139029,1738348296395,-500.0,0.0002027,2]
[351139030,1738348296406,-500.0,0.0002027,2]
[351139031,1738348296415,-500.0,0.0002027,2]
[351139032,1738348296426,-500.0,0.0002027,2]
[351139033,1738348296435,-500.0,0.0002027,2]
[351139034,1738348296445,-500.0,0.0002027,2]
[351139035,1738348296459,-500.0,0.0002027,2]
[351139036,1738348296469,-500.0,0.0002027,2]
[351139037,1738348296478,-500.0,0.0002027,2]
[351139038,1738348296685,-500.0,0.0002027,2]
[351139039,1738348296705,-500.0,0.0002027,2]
[351139040,1738348296714,-500.0,0.0002027,2]
[351139041,1738348296723,-500.0,0.0002027,2]
[351139042,1738348296733,-500.0,0.0002027,2]
[351139043,1738348296742,-500.0,0.0002027,2]
[351139044,1738348296752,-500.0,0.0002027,2]
[351139045,1738348296761,-500.0,0.0002027,2]
[351139046,1738348296770,-500.0,0.0002027,2]
[351139047,1738348296780,-500.0,0.0002027,2]
[351139048,1738348296789,-500.0,0.0002027,2]
[351139049,1738348296798,-500.0,0.0002027,2]
[351139050,1738348296808,-500.0,0.0002027,2]
[351139051,1738348296817,-500.0,0.0002027,2]
[351139052,1738348296828,-500.0,0.0002027,2]
[351139053,1738348296837,-500.0,0.0002027,2]
[351139054,1738348296846,-500.0,0.0002027,2]
[351139055,1738348296855,-500.0,0.0002027,2]
[351139056,1738348296864,-500.0,0.0002027,2]
[351139057,1738348296873,-500.0,0.0002027,2]
[351139058,1738348296883,-500.0,0.0002027,2]
[351139059,1738348296892,-500.0,0.0002027,2]
[351139060,1738348296901,-500.0,0.0002027,2]
[351139061,1738348296911,-500.0,0.0002027,2]
[351139062,1738348296922,-500.0,0.0002027,2]
[351139063,1738348296932,-500.0,0.0002027,2]
[351139064,1738348296942,-500.0,0.0002027,2]
[351139065,1738348296955,-500.0,0.0002027,2]
[351139066,1738348296964,-500.0,0.0002027,2]
[351139067,1738348296974,-500.0,0.0002027,2]
[351139068,1738348296984,-500.0,0.0002027,2]
[351139069,1738348296993,-151.0,0.0002027,2]
[351139070,1738348297003,-1756.23,0.0002027,2]
[351139071,1738348297012,-500.0,0.0002027,2]
[351139072,1738348297022,-500.0,0.0002027,2]
[351139073,1738348297031,-500.0,0.0002027,2]
[351139074,1738348297040,-500.0,0.0002027,2]
[351139075,1738348297050,-500.0,0.0002027,2]
[351139076,1738348297060,-500.0,0.0002027,2]
[351139077,1738348297069,-500.0,0.0002027,2]
[351139078,1738348297079,-500.0,0.0002027,2]
[351139079,1738348297092,-500.0,0.0002027,2]
[351139080,1738348297111,-500.0,0.0002027,2]
[351139081,1738348297128,-500.0,0.0002027,2]
[351139082,1738348297138,-151.0,0.0002027,2]
[351139083,1738348297148,-500.0,0.0002027,2]
[351139084,1738348297158,-500.0,0.0002027,2]
[351139085,1738348297168,-500.0,0.0002027,2]
[351139086,1738348297177,-500.0,0.0002027,2]
[351139087,1738348297186,-500.0,0.0002027,2]
[351139088,1738348297197,-500.0,0.0002027,2]
[351139089,1738348297209,-5804.66,0.0002027,2]
[351139090,1738348297219,-500.0,0.0002027,2]
[351139091,1738348297228,-500.0,0.0002027,2]
[351139092,1738348297237,-500.0,0.0002027,2]
[351139093,1738348297247,-500.0,0.0002027,2]
[351139094,1738348297256,-500.0,0.0002027,2]
[351139095,1738348297266,-500.0,0.0002027,2]
[351139096,1738348297275,-500.0,0.0002027,2]
[351139097,1738348297284,-500.0,0.0002027,2]
[351139098,1738348297294,-500.0,0.0002027,2]
[351139099,1738348297304,-500.0,0.0002027,2]
[351139100,1738348297314,-500.0,0.0002027,2]
[351139101,1738348297323,-500.0,0.0002027,2]
[351139102,1738348297332,-500.0,0.0002027,2]
[351139103,1738348297343,-500.0,0.0002027,2]
[351139104,1738348297354,-500.0,0.0002027,2]
[351139105,1738348297363,-500.0,0.0002027,2]
[351139106,1738348297372,-500.0,0.0002027,2]
[351139107,1738348297384,-500.0,0.0002027,2]
[351139108,1738348297394,-500.0,0.0002027,2]
[351139109,1738348297403,-500.0,0.0002027,2]
[351139110,1738348297412,-500.0,0.0002027,2]
[351139111,1738348297421,-500.0,0.0002027,2]
[351139112,1738348297431,-500.0,0.0002027,2]
[351139113,1738348297440,-500.0,0.0002027,2]
[351139114,1738348297453,-500.0,0.0002027,2]
[351139115,1738348297463,-500.0,0.0002027,2]
[351139116,1738348297472,-500.0,0.0002027,2]
[351139117,1738348297482,-500.0,0.0002027,2]
[351139118,1738348297491,-500.0,0.0002027,2]
[351139119,1738348297501,-500.0,0.0002027,2]
[351139120,1738348297514,-500.0,0.0002027,2]
[351139121,1738348297523,-500.0,0.0002027,2]
[351139122,1738348297532,-500.0,0.0002027,2]
[351139123,1738348297543,-500.0,0.0002027,2]
[351139124,1738348297553,-500.0,0.0002027,2]
[351139125,1738348297562,-500.0,0.0002027,2]
[351139126,1738348297572,-500.0,0.0002027,2]
[351139127,1738348297582,-500.0,0.0002027,2]
[351139128,1738348297593,-500.0,0.0002027,2]
[351139129,1738348297603,-500.0,0.0002027,2]
[351139130,1738348297613,-500.0,0.0002027,2]
[351139131,1738348297622,-500.0,0.0002027,2]
[351139132,1738348297631,-500.0,0.0002027,2]
[351139133,1738348297641,-500.0,0.0002027,2]
[351139134,1738348297650,-246.225,0.0002027,2]
[351139135,1738348297659,-1011.15,0.0002027,2]
[351139136,1738348297669,-246.225,0.0002027,2]
[351139137,1738348297679,-500.0,0.0002027,2]
[351139138,1738348297689,-1398.05,0.0002027,2]
[351139139,1738348297703,-151.0,0.0002027,2]
[351139140,1738348297713,-1117.297616,0.0002027,2]
[351139141,1738348297723,-266.606188,0.0002027,2]
[351139142,1738348297733,-1117.297616,0.0002027,2]
[351139143,1738348297743,-151.0,0.0002027,2]
[351139144,1738348297752,-706.26,0.0002027,2]
[351139145,1738348297762,-162.730615,0.0002027,2]
[351139146,1738348297772,-162.730615,0.0002027,2]
[351139147,1738348297782,-1396.62,0.0002027,2]
[351139148,1738348297792,-500.0,0.0002027,2]
[351139149,1738348297802,-500.0,0.0002027,2]
[351139150,1738348297811,-500.0,0.0002027,2]
[351139151,1738348297820,-500.0,0.0002027,2]
[351139152,1738348297830,-500.0,0.0002027,2]
[351139153,1738348297839,-500.0,0.0002027,2]
[351139154,1738348297848,-500.0,0.0002027,2]
[351139155,1738348297859,-500.0,0.0002027,2]
[351139156,1738348297868,-500.0,0.0002027,2]
[351139157,1738348297877,-500.0,0.0002027,2]
[351139158,1738348297887,-500.0,0.0002027,2]
[351139159,1738348297897,-500.0,0.0002027,2]
[351139160,1738348297906,-500.0,0.0002027,2]
[351139161,1738348297916,-500.0,0.0002027,2]
[351139162,1738348297925,-500.0,0.0002027,2]
[351139163,1738348297935,-500.0,0.0002027,2]
[351139164,1738348297945,-500.0,0.0002027,2]
[351139165,1738348297959,-500.0,0.0002027,2]
[351139166,1738348297969,-500.0,0.0002027,2]
[351139167,1738348297978,-500.0,0.0002027,2]
[351139168,1738348297988,-500.0,0.0002027,2]
[351139169,1738348297998,-500.0,0.0002027,2]
[351139170,1738348298007,-500.0,0.0002027,2]
[351139171,1738348298017,-500.0,0.0002027,2]
[351139172,1738348298026,-500.0,0.0002027,2]
[351139173,1738348298035,-500.0,0.0002027,2]
[351139174,1738348298045,-500.0,0.0002027,2]
[351139175,1738348298054,-500.0,0.0002027,2]
[351139176,1738348298064,-1348.69,0.0002027,2]
[351139177,1738348298073,-500.0,0.0002027,2]
[351139178,1738348298082,-500.0,0.0002027,2]
[351139179,1738348298091,-151.0,0.0002027,2]
[351139180,1738348298100,-500.0,0.0002027,2]
[351139181,1738348298109,-500.0,0.0002027,2]
[351139182,1738348298118,-500.0,0.0002027,2]
[351139183,1738348298128,-500.0,0.0002027,2]
[351139184,1738348298137,-500.0,0.0002027,2]
[351139185,1738348298146,-500.0,0.0002027,2]
[351139186,1738348298155,-500.0,0.0002027,2]
[351139187,1738348298165,-500.0,0.0002027,2]
[351139188,1738348298174,-500.0,0.0002027,2]
[351139189,1738348298183,-500.0,0.0002027,2]
[351139190,1738348298192,-500.0,0.0002027,2]
[351139191,1738348298205,-500.0,0.0002027,2]
[351139192,1738348298215,-500.0,0.0002027,2]
[351139193,1738348298224,-500.0,0.0002027,2]
[351139194,1738348298234,-500.0,0.0002027,2]
[351139195,1738348298244,-500.0,0.0002027,2]
[351139196,1738348298253,-500.0,0.0002027,2]
[351139197,1738348298263,-500.0,0.0002027,2]
[351139198,1738348298272,-500.0,0.0002027,2]
[351139199,1738348298282,-500.0,0.0002027,2]
[351139200,1738348298291,-500.0,0.0002027,2]
[351139201,1738348298301,-500.0,0.0002027,2]
[351139202,1738348298311,-500.0,0.0002027,2]
[351139203,1738348298320,-500.0,0.0002027,2]
[351139204,1738348298329,-668.0,0.0002027,2]
[351139205,1738348298339,-500.0,0.0002027,2]
[351139206,1738348298349,-500.0,0.0002027,2]
[351139207,1738348298359,-500.0,0.0002027,2]
[351139208,1738348298369,-500.0,0.0002027,2]
[351139209,1738348298378,-500.0,0.0002027,2]
[351139210,1738348298387,-500.0,0.0002027,2]
[351139211,1738348298397,-1491.37,0.0002027,2]
[351139212,1738348298407,-592.14508778,0.00020271,2]
[351139213,1738348298416,-541.70021877,0.00020271,2]
[351139214,1738348298425,-661.70603908,0.00020271,2]
[351139215,1738348298435,-568.51986107,0.00020271,2]
[351139216,1738348298444,-517.92,0.00020271,2]
[351139217,1738348298462,-573.67586583,0.00020271,2]
[351139218,1738348298473,-730.52800011,0.00020271,2]
[351139219,1738348298482,-536.2630411,0.00020271,2]
[351139220,1738348298492,-978.44384901,0.00020271,2]
[351139221,1738348298503,-932.55278529,0.00020271,2]
[351139222,1738348298514,-1577.90302194,0.00020271,2]
[351139223,1738348298523,-647.4652049,0.00020271,2]
[351139224,1738348298533,-286.106421,0.00020271,2]
[351139225,1738348298544,-551.6075609,0.00020271,2]
[351139226,1738348298553,-616.73457625,0.00020271,2]
[351139227,1738348298563,-612.08825778,0.00020271,2]
[351139228,1738348298573,-1917.4276521,0.00020271,2]
[351139229,1738348298583,-1011.08065412,0.00020271,2]
[351139230,1738348298592,-345.181563,0.00020271,2]
[351139231,1738348298603,-1127.29042935,0.00020271,2]
[351139232,1738348298612,-957.45244917,0.00020271,2]
[351139233,1738348298622,-683.54188005,0.00020271,2]
[351139234,1738348298631,-834.54932946,0.00020271,2]
[351139235,1738348298640,-3304.99224077,0.00020271,2]
[351139236,1738348298650,-1376.14770947,0.00020271,2]
[351139237,1738348298660,-1152.23777599,0.00020271,2]
[351139238,1738348298669,-637.82573571,0.00020271,2]
[351139239,1738348298679,-861.59355481,0.00020271,2]
[351139240,1738348298688,-1174.96464369,0.00020271,2]
[351139241,1738348298701,-5050.38480482,0.00020271,2]
[351139242,1738348298711,-1552.8720945,0.00020271,2]
[351139243,1738348298720,-1714.24717414,0.00020271,2]
[351139244,1738348298730,-970.63815458,0.00020271,2]
[351139245,1738348298739,-974.22088992,0.00020271,2]
[351139246,1738348298748,-2977.29471373,0.00020271,2]
[351139247,1738348298758,-2472.99961795,0.00020271,2]
[351139248,1738348298767,-2130.79638611,0.00020271,2]
[351139249,1738348298776,-2311.00561318,0.00020271,2]
[351139250,1738348298786,-3082.3695113,0.00020271,2]
[351139251,1738348298796,-1236.69601587,0.00020271,2]
[351139252,1738348298807,-1532.17949986,0.00020271,2]
[351139253,1738348298817,-1897.52905279,0.00020271,2]
[351139254,1738348298827,-4150.73005633,0.00020271,2]
[351139255,1738348298836,-4364.02012815,0.00020271,2]
[351139256,1738348298845,-977.44430487,0.00020271,2]
[351139257,1738348298855,-755.49121623,0.00020271,2]
[351139258,1738348298864,-1593.82674819,0.00020271,2]
[351139259,1738348298873,-772.74,0.00020272,2]
[351139260,1738348298883,-2411.39813318,0.00020272,4]
[351139261,1738348298891,-155.71051592,0.00020272,2]
[351139262,1738348298901,-622.183093,0.00020272,2]
[351139263,1738348298911,-429.61007054,0.00020272,2]
[351139264,1738348298920,-800.02147847,0.00020272,2]
[351139265,1738348298929,-666.37087704,0.00020272,2]
[351139266,1738348298939,-536.21693787,0.00020272,2]
[351139267,1738348298951,-872.32978293,0.00020272,2]
[351139268,1738348298960,-1031.06829025,0.00020272,2]
[351139269,1738348298969,-4715.37897617,0.00020272,2]
[351139270,1738348298978,-993.46694703,0.00020272,2]
[351139271,1738348298987,-2606.01493923,0.00020272,2]
[351139272,1738348298995,-4722.14117595,0.00020272,2]
[351139273,1738348299004,-2283.65635918,0.00020272,2]
[351139274,1738348299013,-2389.12546058,0.00020272,2]
[351139275,1738348299023,-558.12967978,0.00020272,2]
[351139276,1738348299032,-2395.66150799,0.00020272,2]
[351139277,1738348299041,-1276.54607732,0.00020272,2]
[351139278,1738348299090,-870.23130461,0.00020272,2]
[351139279,1738348299100,-1177.609404,0.00020272,2]
[351139280,1738348299109,-152.0,0.00020272,7]
[351139281,1738348299118,-2518.04,0.00020285,2]
[351139282,1738348299127,-150.0,0.00020289,4]
[351139283,1738348299136,-172.05062332,0.00020315,2]
[351139284,1738348299146,-150.0,0.00020322,4]
[351139285,1738348299156,-150.0,0.00020323,4]
[351139286,1738348299166,-207.0,0.0002034,2]
[351139287,1738348299175,-212.0,0.0002034,2]
[351139288,1738348299184,-210.0,0.0002034,2]
[351139289,1738348299194,-205.0,0.0002034,2]
[351139290,1738348299207,-209.0,0.0002034,2]
[351139291,1738348299217,-500.0,0.00020345,2]
[351139292,1738348299225,-150.0,0.00020345,4]
[351139293,1738348299235,-150.0,0.00020402,4]
[351139294,1738348299244,-786.06,0.00020407,2]
[351139295,1738348299254,-744.03,0.00020407,2]
[351139296,1738348299263,-1041.45,0.00020407,2]
[351139297,1738348299272,-679.36,0.00020407,2]
[351139298,1738348299282,-639.49,0.00020407,2]
[351139299,1738348299291,-983.34,0.00020407,2]
[351139300,1738348299300,-853.27,0.00020407,2]
[351139301,1738348299310,-2290.49,0.00020407,2]
[351139302,1738348299319,-15748.87,0.00020407,2]
[351139303,1738348299328,-1756.23,0.00020407,2]
[351139304,1738348299337,-5804.66,0.00020407,2]
[351139305,1738348299347,-1011.15,0.00020407,2]
[351139306,1738348299356,-1398.05,0.00020407,2]
[351139307,1738348299366,-706.26,0.00020407,2]
[351139308,1738348299376,-1396.62,0.00020407,2]
[351139309,1738348299385,-1348.69,0.00020407,2]
[351139310,1738348299395,-1491.37,0.00020407,2]
[351139311,1738348299404,-723.60050494,0.0002042,2]
[351139312,1738348299413,-150.29,0.00020421,2]
[351139313,1738348299423,-298.42,0.00020421,2]
[351139314,1738348299432,-298.42,0.00020421,2]
[351139315,1738348299441,-438.33,0.00020421,2]
[351139316,1738348299455,-300.0,0.00020421,2]
[351139317,1738348299464,-298.42,0.00020421,2]
[351139318,1738348299473,-438.33,0.00020421,2]
[351139319,1738348299483,-438.33,0.00020421,2]
[351139320,1738348299492,-382.75,0.00020421,2]
[351139321,1738348299504,-438.33,0.00020421,2]
[351139322,1738348299515,-438.58,0.00020421,2]
[351139323,1738348299525,-11040.00003039,0.00020432,4]
[351139324,1738348299534,-150.0,0.00020443,4]
[351139325,1738348299545,-15556.10725319,0.00020444,2]
[351139326,1738348299555,-500.0,0.00020445,2]
[351139327,1738348299564,-150.0,0.00020458,4]
[351139328,1738348299574,-161.98004667,0.00020464,2]
[351139329,1738348299583,-2735.0,0.00020478,11]
[351139330,1738348299593,-2518.03,0.00020486,2]
[351139331,1738348299602,-2110.0,0.000205,2]
[351139332,1738348299612,-3000.0,0.000205,2]
[351139333,1738348299621,-150.0,0.00020502,4]
[351139334,1738348299631,-150.0,0.00020515,4]
[351139335,1738348299640,-500.0,0.00020543,7]
[351139336,1738348299649,-500.0,0.00020543,7]
[351139337,1738348299659,-786.17,0.00020544,2]
[351139338,1738348299669,-744.19907452,0.00020544,2]
[351139339,1738348299680,-1041.52880486,0.00020544,2]
[351139340,1738348299689,-679.48741207,0.00020544,2]
[351139341,1738348299702,-639.54209283,0.00020544,2]
[351139342,1738348299711,-809.512431,0.00020544,2]
[351139343,1738348299720,-809.512431,0.00020544,2]
[351139344,1738348299730,-983.54707413,0.00020544,2]
[351139345,1738348299739,-151.0,0.00020544,2]
[351139346,1738348299748,-853.45071232,0.00020544,2]
[351139347,1738348299757,-2290.57539384,0.00020544,2]
[351139348,1738348299767,-15748.91560983,0.00020544,2]
[351139349,1738348299776,-1756.30772767,0.00020544,2]
[351139350,1738348299786,-5804.79544581,0.00020544,2]
[351139351,1738348299796,-1011.33761651,0.00020544,2]
[351139352,1738348299805,-1398.07754149,0.00020544,2]
[351139353,1738348299815,-706.32463618,0.00020544,2]
[351139354,1738348299824,-1396.69758685,0.00020544,2]
[351139355,1738348299833,-1348.78603006,0.00020544,2]
[351139356,1738348299843,-1491.54473827,0.00020544,2]
[351139357,1738348299852,-500.0,0.00020545,2]
[351139358,1738348299862,-151.0,0.00020545,2]
[351139359,1738348299871,-672.567098,0.00020545,2]
[351139360,1738348299882,-672.567098,0.00020545,2]
[351139361,1738348299891,-151.0,0.00020545,2]
[351139362,1738348299900,-151.0,0.00020545,2]
[351139363,1738348299910,-1000.0,0.00020548,2]
[351139364,1738348299919,-442.03,0.00020548,2]
[351139365,1738348299928,-256.46,0.00020548,2]
[351139366,1738348299937,-188.82607862,0.00020548,2]
[351139367,1738348299946,-177.69,0.00020548,2]
[351139368,1738348299957,-155.696485,0.00020562,4]
[351139369,1738348299967,-150.0,0.00020564,4]
[351139370,1738348299976,-150.0,0.00020571,4]
[351139371,1738348299985,-150.0,0.00020628,4]
[351139372,1738348299995,-500.0,0.00020645,2]
[351139373,1738348300004,-150.54,0.00020653,2]
[351139374,1738348300013,-300.0,0.0002067,2]
[351139375,1738348300023,-400.0,0.0002067,2]